Cogmind - Beta 17.1 @@@ ROGUE MODE // 2026.08.25 @ 13:00:42 Player: ae Result: Escaped! Performance ------------- Evolutions (9) 4500 Regions Visited (28) 5600 Robots Destroyed (210) 1050 Value Destroyed (4607) 4607 Prototype IDs (58) 1160 Alien Tech Used (0) 0 Bonus (9869) 9869 TOTAL SCORE: 26786 Bonus ------- Triggered High Security 500 Triggered Max Security 2000 High Alert Combat Kills 469 Follower Combat Kills 1382 Hunted by Unchained 500 Network Hubs Disabled 400 Aligned with FarCom 300 Met Data Miner 300 Built Enhanced Grunts 300 A7 Reached Mainframe 300 Met R17 at Cetus 500 Win 3000 Friendly Fire -82 Cogmind --------- Core Integrity 1532/1600 Matter 121/300 Energy 284/300 System Corruption 0% Temperature Warm (158) Movement Flying (17) Location To Epsilon Eridani Parts ------- > --- POWER (3) -------- Light Antimatter Reactor Light Particle Reactor Micro Antimatter Reactor > --- PROPULSION (10) -- Improved Flight Unit Cooled VTOL Module Cooled VTOL Module Cooled VTOL Module Impulse Thruster Improved Diametric Drive Impulse Thruster Array Impulse Thruster Array > --- UTILITY (10) ----- Advanced Heat Sink Medium Storage Unit Enhanced Optical Array Advanced Sensor Array Advanced Signal Interpreter Advanced Reaction Control System Centrium Medium Armor Plating Centrium Medium Armor Plating Improved Hacking Suite Hacking Drone Bay (1/1) > --- WEAPON (2) ------- Power Sword Longsword +1 > --- INVENTORY (10) --- Light Quantum Reactor Faulty Experimental Q-thruster Advanced Sensor Array High-powered Transdimensional Reconstructor Null Cannon Fusion Bomb Launcher CR-A16's Pointy Stick Peak State ------------ > --- POWER ------------ Light Antimatter Reactor Light Particle Reactor Micro Antimatter Reactor > --- PROPULSION ------- Improved Flight Unit Cooled VTOL Module Cooled VTOL Module Cooled VTOL Module Impulse Thruster Improved Diametric Drive Impulse Thruster Array Impulse Thruster Array > --- UTILITY ---------- Advanced Heat Sink Medium Storage Unit Enhanced Optical Array Advanced Sensor Array Advanced Signal Interpreter Advanced Reaction Control System Centrium Medium Armor Plating Centrium Medium Armor Plating Improved Hacking Suite Hacking Drone Bay > --- WEAPON ----------- Fusion Bomb Launcher Longsword +1 > --- INVENTORY -------- Light Quantum Reactor Experimental Q-thruster Advanced Sensor Array High-powered Transdimensional Reconstructor Null Cannon Power Sword CR-A16's Pointy Stick [Rating: 171] Favorites ----------- Power Micro Nuclear Core Engine Improved Ion Engine Power Core Micro Nuclear Core Reactor Light Antimatter Reactor Propulsion Cooled VTOL Module Treads Light Treads Hover Unit Gravmag System Flight Unit Cooled VTOL Module Utility Seismic Detector Device Seismic Detector Storage Medium Storage Unit Processor Advanced Signal Interpreter Hackware Hacking Suite Protection Improved Light Armor Plating Weapon Longsword +1 Energy Gun Improved EM Shotgun Energy Cannon Advanced Beam Cannon Ballistic Gun Assault Rifle Ballistic Cannon Light Cannon Launcher Mini Grenade Launcher Special Weapon Improved Plasma Cutter Impact Weapon Heavy Hammer Slashing Weapon Longsword +1 Piercing Weapon CR-A16's Pointy Stick Build | -11 -10 -10 -9 -9 -9 -8 -8 -7 -7 -7 -7 -6 -6 -6 -6 -6 -5 -5 -5 -5 -5 -5 -4 -3 -3 -2 -2 -1 ------- Run | Yrd Mat Min Mat Min Exi Min Mat Fac Low Low Dat Pro Fac Low Low Zio Pro Fac Ext Cet Arc Hub Fac Res Tes Res Qua Acc Slots Evolved 18 | . . . 2 . . . 2 2 . . . . 2 . . . . 2 . . . . 2 2 . 2 . 2 Power 2 | . . . . . . . . . . . . . 1 . . . . . . . . . . . . 1 . . Propulsion 8 | . . . 1 . . . 1 1 . . . . . . . . . 2 . . . . . 1 . 1 . 1 Utility 8 | . . . 1 . . . 1 1 . . . . 1 . . . . . . . . . 2 1 . . . 1 Weapon . | . . . . . . . . . . . . . . . . . . . . . . . . . . . . . Parts Attached 135 | 8 7 1 19 . . 1 14 20 2 . . 1 5 . 1 3 . 2 3 6 3 3 12 8 5 1 2 8 Power 21 | 1 2 1 3 . . . . 2 . . . . 1 . . . . . 1 . 1 1 2 3 . . 1 2 Engine 8 | 1 2 . 3 . . . . 1 . . . . . . . . . . . . . . 1 . . . . . Core 7 | . . 1 . . . . . 1 . . . . 1 . . . . . 1 . 1 1 1 . . . . . Reactor 6 | . . . . . . . . . . . . . . . . . . . . . . . . 3 . . 1 2 Propulsion 39 | 2 . . 8 . . . 6 10 . . . . 1 . . . . 1 1 . 2 1 4 1 1 . 1 . Treads 15 | 2 . . 8 . . . 5 . . . . . . . . . . . . . . . . . . . . . Leg . | . . . . . . . . . . . . . . . . . . . . . . . . . . . . . Wheel . | . . . . . . . . . . . . . . . . . . . . . . . . . . . . . Hover 2 | . . . . . . . . . . . . . . . . . . . . . 2 . . . . . . . Flight 22 | . . . . . . . 1 10 . . . . 1 . . . . 1 1 . . 1 4 1 1 . 1 . Utility 43 | 2 3 . 1 . . 1 3 5 2 . . 1 1 . . 1 . 1 . 4 . 1 6 4 2 1 . 4 Device 15 | 1 2 . 1 . . . 2 . 1 . . . . . . 1 . 1 . 2 . 1 1 1 . . . 1 Storage 4 | 1 1 . . . . . . 1 . . . . . . . . . . . 1 . . . . . . . . Processor 9 | . . . . . . . . . 1 . . 1 1 . . . . . . . . . 1 1 2 . . 2 Hackware 9 | . . . . . . . . 3 . . . . . . . . . . . . . . 3 1 . 1 . 1 Protection 6 | . . . . . . 1 1 1 . . . . . . . . . . . 1 . . 1 1 . . . . Artifact . | . . . . . . . . . . . . . . . . . . . . . . . . . . . . . Weapon 32 | 3 2 . 7 . . . 5 3 . . . . 2 . 1 2 . . 1 2 . . . . 2 . . 2 Energy Gun 4 | . . . 3 . . . 1 . . . . . . . . . . . . . . . . . . . . . Energy Cannon 7 | . . . 2 . . . 1 1 . . . . 1 . . . . . . . . . . . 2 . . . Ballistic Gun 7 | 3 1 . 1 . . . . . . . . . . . . . . . 1 1 . . . . . . . . Ballistic Cannon 1 | . 1 . . . . . . . . . . . . . . . . . . . . . . . . . . . Launcher 6 | . . . 1 . . . 2 1 . . . . . . 1 . . . . . . . . . . . . 1 Special Weapon 1 | . . . . . . . . . . . . . . . . . . . . 1 . . . . . . . . Impact Weapon 1 | . . . . . . . 1 . . . . . . . . . . . . . . . . . . . . . Slashing Weapon 4 | . . . . . . . . 1 . . . . 1 . . 1 . . . . . . . . . . . 1 Piercing Weapon 1 | . . . . . . . . . . . . . . . . 1 . . . . . . . . . . . . Special Melee Weapon . | . . . . . . . . . . . . . . . . . . . . . . . . . . . . . Unidentified Prototypes 21 | . . . 1 . . . 2 2 . . . . 1 . . 1 . . . 4 . 1 2 3 4 . . . Parts Lost 19 | . . . 1 . . . 3 . . . . . . . . . . . 7 . 1 4 1 . . . . 2 Power 4 | . . . 1 . . . . . . . . . . . . . . . 1 . 1 1 . . . . . . Propulsion 8 | . . . . . . . 1 . . . . . . . . . . . 3 . . 2 1 . . . . 1 Utility 6 | . . . . . . . 2 . . . . . . . . . . . 3 . . . . . . . . 1 Weapon 1 | . . . . . . . . . . . . . . . . . . . . . . 1 . . . . . . Highest Loss Streak 4 | . . . 1 . . . 1 . . . . . . . . . . . 4 . 1 4 1 . . . . 2 To Critical Strikes . | . . . . . . . . . . . . . . . . . . . . . . . . . . . . . Average Backups 11 | 2 12 15 14 15 15 15 14 10 10 10 10 10 9 9 9 10 9 8 9 10 9 9 9 9 9 8 9 9 Power . | 1 1 1 . . . . . . . . . . . . . . . . 2 2 1 . . . . . . 1 Propulsion 3 | . 2 5 6 7 6 6 6 2 3 3 3 3 3 3 3 3 3 1 . . . . . 2 2 1 1 1 Utility 3 | . 4 5 3 5 5 5 4 5 4 4 4 4 3 4 4 3 2 2 1 2 3 4 5 3 3 4 4 2 Weapon 3 | . 3 4 4 3 3 4 4 2 3 3 3 3 3 2 2 3 4 5 3 4 4 4 4 3 3 3 3 3 Tool/Special . | . . . . . . . . . . . . . . . . . . . . . . . . . . . . . Unused Backups 34 | . 2 . 10 . 1 1 3 4 . . . . . . 2 2 . . . . . . . 3 2 . . 4 Power 2 | . 1 . . . . . . . . . . . . . . . . . . . . . . . . . . 1 Propulsion 12 | . . . 5 . 1 . 1 2 . . . . . . . . . . . . . . . . 2 . . 1 Utility 10 | . . . 2 . . . . 1 . . . . . . 2 2 . . . . . . . 2 . . . 1 Weapon 8 | . 1 . 2 . . 1 2 1 . . . . . . . . . . . . . . . 1 . . . . Tool/Special 2 | . . . 1 . . . . . . . . . . . . . . . . . . . . . . . . 1 Average Slot Usage (%) 92 | . 100 100 99 100 100 100 92 96 100 100 100 100 88 92 93 93 91 86 79 67 81 89 80 92 94 91 91 88 Engine 5 | . 14 4 9 11 11 11 9 4 . . . . . . . . . . . . . . 1 . . . . . Core 4 | . . 9 1 . . . . 2 7 7 7 7 7 13 13 13 13 11 8 5 5 7 6 5 4 4 4 1 Treads 14 | . 28 28 33 33 33 33 35 . . . . . . . . . . . . . . . . . . . . . Flight 18 | . . . . . . . . 37 38 38 38 38 33 33 33 33 33 39 35 29 29 31 29 33 33 34 31 31 Device 14 | . 14 14 21 22 22 21 13 10 7 6 7 7 6 12 13 13 13 11 10 14 23 23 11 10 9 11 13 13 Storage 8 | . 14 14 11 11 11 11 9 7 7 7 7 7 6 6 6 6 6 5 5 5 5 5 5 4 4 4 4 4 Processor 4 | . . . . . . . . . 5 7 7 7 10 13 13 13 13 11 7 5 5 5 6 7 14 13 13 6 Hackware 3 | . . . . . . . . 10 15 15 15 15 8 6 6 6 4 . . . . . 6 12 9 8 8 7 Protection 2 | . . . . . . . 6 7 1 . . . 4 . . . 1 5 2 . . . 3 4 4 . . 6 Energy Cannon 3 | . . . 8 11 11 11 9 . . . . . . . . . . . . . . . . . . 1 4 . Ballistic Gun 3 | . 23 28 3 . . . . . . . . . . . . . . . 3 . . . . . . . . . Launcher 2 | . . . 3 11 11 11 2 1 7 7 7 6 . . . . . . . . . . . . . . . . Slashing Weapon 2 | . . . . . . . . 5 7 7 7 7 8 6 5 . . . 1 4 5 3 4 3 3 4 4 4 Peak Build Rating 171 | 7 10 10 20 18 19 19 30 49 48 48 48 53 61 57 58 62 58 67 80 67 72 79 95 124 136 140 155 171 Average Rating 44 | 5 7 9 17 18 18 19 23 40 47 48 48 50 53 56 57 54 54 64 62 54 66 72 77 113 120 135 151 158 On Entrance 55 | . 7 8 10 18 18 19 19 28 47 48 48 48 53 55 57 58 55 51 67 53 64 72 64 89 123 122 140 155 Avg Prop Armor Cover (%) 7 | 41 . . . . . . 20 3 . . . . . . . . . . . . 13 9 6 . . . . . Naked Turns . | . . . . . . . . . . . . . . . . . . . . . . . . . . . . . Heaviest Build 70 | 13 31 30 36 34 34 36 46 29 24 23 21 27 27 27 31 27 27 28 37 24 24 32 35 45 44 48 63 70 Greatest Support 88 | 40 40 40 63 63 63 63 88 31 29 29 27 29 27 27 31 27 31 37 37 25 25 40 41 51 53 58 63 72 Greatest Overweight (x) 1 | . . . . . . . 1 1 . . . . . . . . . . 1 . . . 1 . . . . . Average Overweight (x) . | . . . . . . . . . . . . . . . . . . . . . . . . . . . . . Largest Inventory Capacity 15 | 8 15 15 15 15 15 15 15 15 10 10 10 10 10 10 10 10 10 10 10 10 10 10 10 10 10 10 10 10 Average Capacity 12 | 7 14 15 15 15 15 15 15 10 10 10 10 10 10 10 10 10 10 10 10 10 10 10 10 10 10 10 10 10 Most Carried 15 | 4 15 15 15 15 15 15 15 15 10 10 10 10 10 10 10 10 10 9 10 10 10 10 10 10 10 9 10 10 Average Carried 11 | 2 12 15 14 15 15 15 14 9 10 10 10 10 9 9 9 9 9 8 9 9 9 9 9 9 9 9 9 9 Final Capacity 15 | 8 15 15 15 15 15 15 15 10 10 10 10 10 10 10 10 10 10 10 10 10 10 10 10 10 10 10 10 10 Final Carried 15 | 4 15 15 15 15 15 15 15 10 10 10 10 10 10 9 10 10 10 9 10 10 10 9 10 10 10 9 10 7 Class Distribution -------------------- 42% | Mutant 19% | Hacker-Sprinter 10% | Scout 8% | Commander-Sprinter 6% | Sprinter 4% | Scavenger-Mutant 3% | Commander-Scout Dominant Class ---------------- Mutant | -10/Materials Mutant | -10/Mines Mutant | -9/Materials Mutant | -9/Mines Mutant | -9/Exiles Mutant | -8/Mines Mutant | -8/Materials Sprinter | -7/Factory Hacker-Sprinter | -7/Lower Caves Hacker-Sprinter | -7/Lower Caves Hacker-Sprinter | -7/Data Miner Hacker-Sprinter | -6/Proximity Caves Sprinter | -6/Factory Scout | -6/Lower Caves Scout | -6/Lower Caves Scout | -6/Zion Scout | -5/Proximity Caves Scout | -5/Factory Commander-Sprinter | -5/Extension Commander-Scout | -5/Cetus Scavenger-Scout | -5/Archives Scavenger-Scout | -5/Hub_04(d) Scout | -4/Factory Hacker-Sprinter | -3/Research Hacker-Sprinter | -3/Testing Hacker-Sprinter | -2/Research Hacker-Sprinter | -2/Quarantine Hacker-Sprinter | -1/Access Resources | -11 -10 -10 -9 -9 -9 -8 -8 -7 -7 -7 -7 -6 -6 -6 -6 -6 -5 -5 -5 -5 -5 -5 -4 -3 -3 -2 -2 -1 ----------- Run | Yrd Mat Min Mat Min Exi Min Mat Fac Low Low Dat Pro Fac Low Low Zio Pro Fac Ext Cet Arc Hub Fac Res Tes Res Qua Acc Matter Collected 3945 | 266 415 58 587 . . 62 206 308 3 49 . 124 120 10 122 20 73 . 423 90 30 32 360 224 38 62 . 263 Remotely . | . . . . . . . . . . . . . . . . . . . . . . . . . . . . . Salvage Created 7007 | 313 528 106 2050 . . 59 532 272 . 76 . . 370 13 35 . 91 . 1356 67 144 54 337 157 52 62 . 333 Parts 416 | 33 36 5 133 . . 3 22 13 . 13 . . 19 . 2 . 9 . 52 . 9 5 19 12 8 2 . 21 Haulers Intercepted 12 | . 2 . 5 . . . 1 1 . . . . 1 . . . . . 1 . . . . . . . . 1 Recyclers Shooed 11 | . 2 1 7 . . . . . . . . . . . . . . . 1 . . . . . . . . . Parts Field Recycled . | . . . . . . . . . . . . . . . . . . . . . . . . . . . . . Retrieved Matter . | . . . . . . . . . . . . . . . . . . . . . . . . . . . . . Parts Self-Destructed 20 | . . . . . . . . . 3 9 . . . . 2 . 6 . . . . . . . . . . . Prevented 1 | . . . . . . . . . 1 . . . . . . . . . . . . . . . . . . . Parts Restored . | . . . . . . . . . . . . . . . . . . . . . . . . . . . . . Kills | -11 -10 -10 -9 -9 -9 -8 -8 -7 -7 -7 -7 -6 -6 -6 -6 -6 -5 -5 -5 -5 -5 -5 -4 -3 -3 -2 -2 -1 ------- Run | Yrd Mat Min Mat Min Exi Min Mat Fac Low Low Dat Pro Fac Low Low Zio Pro Fac Ext Cet Arc Hub Fac Res Tes Res Qua Acc Combat Hostiles Destroyed 100 | . 11 2 36 . . 4 7 . . 6 . . . . 4 . 5 . 10 . 1 . . 3 . . . 11 Melee 11 | . . . . . . . 5 . . . . . . . . . . . 5 . 1 . . . . . . . Guns 22 | . 10 2 8 . . . . . . . . . . . . . . . 2 . . . . . . . . . Cannons 16 | . 1 . 12 . . 1 2 . . . . . . . . . . . . . . . . . . . . . AOE 51 | . . . 16 . . 3 . . . 6 . . . . 4 . 5 . 3 . . . . 3 . . . 11 Classes Destroyed 13 | 3 5 . 2 . . 1 . . . . . . 1 . . . . . 1 . . . . . . . . . Worker 24 | 2 1 . 3 . . . 5 1 . . . . 3 . . . . . . . . . 3 3 2 . . 1 Builder 8 | . 1 . 2 . . . 1 . . . . . 2 . . . . . 1 . . . . . 1 . . . Tunneler 13 | 9 . . 1 . . . 1 1 . . . . . . . . . . . . . . 1 . . . . . Hauler 12 | . 2 . 5 . . . 1 1 . . . . 1 . . . . . 1 . . . . . . . . 1 Recycler 20 | 1 1 . 8 . . . 1 2 . . . . 1 . . . . . 5 . . . 1 . . . . . Mechanic 2 | . . . . . . . . . . . . . 1 . . . . . . . . . 1 . . . . . Operator 15 | . . . 2 . . . 2 2 . . . . 1 . . . . . . . 2 1 2 1 . 1 . 1 Watcher 16 | . 2 . 4 . . . 1 . . . . . . . . . . . 1 2 . 2 1 1 . 1 . 1 Swarmer 57 | . 6 . 13 . . 3 3 . . 6 . . . . 4 . 5 . 3 . . . . 3 . . . 11 Grunt 26 | . 5 2 14 . . . . . . . . . . . . . . . 5 . . . . . . . . . Sentry 14 | . . . 9 . . . 3 . . . . . . . . . . . 1 . 1 . . . . . . . Hunter 2 | . . . . . . 1 1 . . . . . . . . . . . . . . . . . . . . . Behemoth 1 | . . . . . . . . . . . . . . . . . . . 1 . . . . . . . . . Decomposer 2 | . . . . . . . . . . . . . . 1 . . 1 . . . . . . . . . . . Best Kill Streak 8 | 5 5 2 8 . . 3 6 2 . 4 . . 2 . 4 . 5 . 5 1 3 1 2 7 3 1 . 7 Combat Bots Only 6 | . 3 2 5 . . 3 4 . . 4 . . . . 4 . 5 . 3 . 1 . . 3 . . . 6 Max Kills in Single Turn 6 | 2 1 1 3 . . 2 1 1 . 2 . . 1 1 2 . 3 . 2 1 1 1 1 2 1 1 . 6 Gunslinging . | . . . . . . . . . . . . . . . . . . . . . . . . . . . . . Exploded 6 | . . . 3 . . 2 . . . 2 . . . . 2 . 3 . 2 . . . . 1 . . . 6 Melee 1 | . . . . . . . 1 . . . . . . . . . . . 1 . 1 . . . . . . . Uniques/NPCs Destroyed . | . . . . . . . . . . . . . . . . . . . . . . . . . . . . . Combat | -11 -10 -10 -9 -9 -9 -8 -8 -7 -7 -7 -7 -6 -6 -6 -6 -6 -5 -5 -5 -5 -5 -5 -4 -3 -3 -2 -2 -1 -------- Run | Yrd Mat Min Mat Min Exi Min Mat Fac Low Low Dat Pro Fac Low Low Zio Pro Fac Ext Cet Arc Hub Fac Res Tes Res Qua Acc Hostile Shots Fired 451 | . 34 16 88 . . 17 56 8 15 5 . 18 . 1 3 . 19 . 40 . 4 23 . 15 2 2 5 80 Missed 195 | . 8 5 33 . . 4 20 5 12 1 . 15 . . 1 . 8 . 15 . 2 7 . 10 2 2 3 42 Hits 256 | . 26 11 55 . . 13 36 3 3 4 . 3 . 1 2 . 11 . 25 . 2 16 . 5 . . 2 38 Melee 1 | . . . . . . . . . . . . . . . . . . . . . . . . . . . . 1 Projectile 255 | . 26 11 55 . . 13 36 3 3 4 . 3 . 1 2 . 11 . 25 . 2 16 . 5 . . 2 37 AOE 1 | . . . . . . . 1 . . . . . . . . . . . . . . . . . . . . . Critical Strikes 9 | . 1 . 1 . . 1 . . . . . . . . . . 2 . 1 . . 3 . . . . . . Part Disruptions 1 | . . . . . . . . . . . . . . . . . . . . . . . 1 . . . . . Damage Taken 4875 | . 269 151 724 . . 229 597 17 51 98 . 71 . 16 30 . 179 . 703 40 52 475 102 121 . . 49 901 Core 769 | . 62 14 96 . . 13 56 . 18 48 . 42 . . 13 . 67 . 161 25 . 86 . . . . . 68 Absorbed by Shields 173 | . . . . . . . . . . . . . . . . . . . 36 15 24 98 . . . . . . Ignored by Resistances 45 | . . . . . . . . . . . . . . . . . . . . . 9 36 . . . . . . Regen/Repaired (Parts) 267 | . . . 32 . . . . . . . . . 118 . . 71 . . . . . . . 46 . . . . Core Remaining (%) 88 | 100 . 69 . . . 72 89 . . . . 84 . . . . 90 . . . . 72 100 . 100 . 100 95 Volleys Fired 390 | 12 43 10 159 . . 10 23 2 . 8 . 16 3 . 15 . 2 . 44 . . 2 15 4 . 3 2 17 Largest 2 | 2 2 2 2 . . 1 1 1 . 1 . 1 1 . 1 . 1 . 1 . . 1 1 1 . 1 1 1 Hottest 130 | 40 50 40 90 . . 68 69 30 . 30 . 30 30 . 39 . 39 . 39 . . 39 30 39 . 130 130 130 Shots Fired 511 | 23 86 20 216 . . 10 23 2 . 8 . 16 3 . 15 . 2 . 44 . . 2 15 4 . 3 2 17 Gun 267 | 23 78 20 104 . . . . . . . . . . . . . . . 42 . . . . . . . . . Cannon 193 | . 8 . 100 . . 7 19 . . . . 14 3 . 12 . . . . . . 1 15 . . 3 2 9 Launcher 51 | . . . 12 . . 3 4 2 . 8 . 2 . . 3 . 2 . 2 . . 1 . 4 . . . 8 Special . | . . . . . . . . . . . . . . . . . . . . . . . . . . . . . Kinetic 267 | 23 86 20 96 . . . . . . . . . . . . . . . 42 . . . . . . . . . Thermal 173 | . . . 90 . . 7 17 . . . . 14 3 . 12 . . . . . . 1 15 . . 3 2 9 Explosive 51 | . . . 12 . . 3 4 2 . 8 . 2 . . 3 . 2 . 2 . . 1 . 4 . . . 8 Electromagnetic 20 | . . . 18 . . . 2 . . . . . . . . . . . . . . . . . . . . . Robot Hit Streak 13 | 5 13 9 12 . . 3 11 . . . . . . . . . . . 4 . . 1 . . . . . . Robot Miss Streak 5 | 1 5 2 5 . . 1 1 . . . . . . . . . . . 3 . . . 1 . . . . . Penetration Max 1 | . . . . . . . . . . . . . . . . . . . 1 . . . . . . . . . Secondary Targets 4 | . 3 1 . . . . . . . . . . . . . . . . . . . . . . . . . . Max Gunslinging Chain 1 | . 1 1 . . . . . . . . . . . . . . . . . . . . . . . . . . Shots Hit Robots 381 | 13 52 17 137 . . 6 40 13 . . . 1 10 1 . . 1 . 48 3 4 3 13 7 3 4 . 5 Core Hits 235 | 12 26 6 74 . . 6 11 3 . 6 . . 5 . 3 . 8 . 28 1 3 7 3 9 . 1 . 23 Critical Kills 6 | 1 . 1 . . . . 1 . . . . . . . . . . . 3 . . . . . . . . . Critical Parts Destroyed 8 | . . . . . . . 2 . . . . . . . . . . . 6 . . . . . . . . . Critical Strikes 20 | 1 1 1 . . . . 3 . . . . 1 . . . . . . 13 . . . . . . . . . Meltdown 1 | . . . . . . . 1 . . . . . . . . . . . . . . . . . . . . . Destroy 12 | 1 . 1 . . . . . . . . . . . . . . . . 10 . . . . . . . . . Blast 1 | . 1 . . . . . . . . . . . . . . . . . . . . . . . . . . . Smash 2 | . . . . . . . 2 . . . . . . . . . . . . . . . . . . . . . Sever 3 | . . . . . . . . . . . . 1 . . . . . . 2 . . . . . . . . . Impale 1 | . . . . . . . . . . . . . . . . . . . 1 . . . . . . . . . Melee Attacks 353 | . . . . . . . 39 34 . 3 . 32 25 7 17 2 5 . 55 8 5 6 36 18 16 10 4 31 Impact 49 | . . . . . . . 39 10 . . . . . . . . . . . . . . . . . . . . Slashing 266 | . . . . . . . . 24 . 3 . 32 25 7 17 . 1 . 33 8 5 6 36 15 12 7 4 31 Piercing 38 | . . . . . . . . . . . . . . . . 2 4 . 22 . . . . 3 4 3 . . Sneak Attacks 52 | . . . . . . . 9 6 . . . 1 8 1 . . 1 . 9 . 3 . 7 2 3 1 . 1 Combat Hostiles 3 | . . . . . . . . . . . . 1 . . . . . . 1 . 1 . . . . . . . Follow-up Attacks 1 | . . . . . . . . . . . . . . . . . . . . . . . . . . . . 1 Damage Inflicted 18128 | 160 807 218 3628 . . 259 1661 1090 . 311 . 74 975 124 407 . 291 . 2187 193 408 379 1222 949 312 289 . 2184 Guns 2283 | 160 651 214 1066 . . . . . . . . . . . . . . . 192 . . . . . . . . . Cannons 1969 | . 135 . 1407 . . 102 325 . . . . . . . . . . . . . . . . . . . . . Explosions 4942 | . . . 1118 . . 147 91 . . 311 . . . . 407 . 206 . 225 . . 264 . 370 . . . 1803 Melee 8862 | . . . . . . . 1245 1090 . . . 74 975 124 . . 85 . 1770 193 408 115 1222 579 312 289 . 381 Ramming 72 | . 21 4 37 . . 10 . . . . . . . . . . . . . . . . . . . . . . Kinetic 2295 | 160 786 214 943 . . . . . . . . . . . . . . . 192 . . . . . . . . . Thermal 1785 | . . . 1358 . . 102 325 . . . . . . . . . . . . . . . . . . . . . Explosive 4844 | . . . 1020 . . 147 91 . . 311 . . . . 407 . 206 . 225 . . 264 . 370 . . . 1803 Electromagnetic 270 | . . . 270 . . . . . . . . . . . . . . . . . . . . . . . . . Impact 1459 | . . . . . . . 1245 214 . . . . . . . . . . . . . . . . . . . . Slashing 6325 | . . . . . . . . 876 . . . 74 975 124 . . . . 1083 193 408 115 1222 579 103 192 . 381 Piercing 1078 | . . . . . . . . . . . . . . . . . 85 . 687 . . . . . 209 97 . . Highest Corruption 4 | . . . . . . . . . . . . . . . . . . . . . . 4 . . . . . . Average Corruption 2 | . . . . . . . . . . . . . . . . . . . . . . 2 . . . . . . Corruption Purged . | . . . . . . . . . . . . . . . . . . . . . . . . . . . . . Corruption Blocked . | . . . . . . . . . . . . . . . . . . . . . . . . . . . . . Overload Shots . | . . . . . . . . . . . . . . . . . . . . . . . . . . . . . Overflow Damage 3065 | . . . 26 . . . 470 291 . 36 . . 331 118 94 . 75 . 263 44 43 30 486 262 192 97 . 207 Projectiles 38 | . . . 26 . . . 12 . . . . . . . . . . . . . . . . . . . . . Explosions 194 | . . . . . . . 11 . . 36 . . . . 94 . . . . . . . . 4 . . . 49 Melee 2833 | . . . . . . . 447 291 . . . . 331 118 . . 75 . 263 44 43 30 486 258 192 97 . 158 Knockbacks 6 | . . . 3 . . . 2 1 . . . . . . . . . . . . . . . . . . . . Impact 3 | . . . . . . . 2 1 . . . . . . . . . . . . . . . . . . . . Kinetic 3 | . . . 3 . . . . . . . . . . . . . . . . . . . . . . . . . Secondary . | . . . . . . . . . . . . . . . . . . . . . . . . . . . . . Self-Inflicted Damage 313 | . . . 60 . . 57 . . . 40 . . . . . . . . 31 . . 63 . . . . . 62 Shots 8 | . . . 2 . . 2 . . . 1 . . . . . . . . 1 . . 1 . . . . . 1 Rammed 15 | . 8 1 5 . . 1 . . . . . . . . . . . . . . . . . . . . . . Targets Rammed 17 | . 8 1 7 . . 1 . . . . . . . . . . . . . . . . . . . . . . Kicked . | . . . . . . . . . . . . . . . . . . . . . . . . . . . . . Crushed 2 | . . . 2 . . . . . . . . . . . . . . . . . . . . . . . . . Highest Temperature 362 | . 10 8 321 . . . 362 10 30 3 . 29 10 8 26 14 162 . 5 . . 26 86 175 4 104 . 284 Average Temperature 35 | . 4 2 68 . . . 92 2 17 2 . 12 3 3 4 4 50 . 4 . . 21 27 20 2 37 . 76 Received Heat Transfer 990 | . 102 90 246 . . . 120 . 27 . . 18 . . . . 92 . 150 . 4 42 . . . . 9 90 Siege Activations . | . . . . . . . . . . . . . . . . . . . . . . . . . . . . . Martial Activations . | . . . . . . . . . . . . . . . . . . . . . . . . . . . . . Shielding Activations . | . . . . . . . . . . . . . . . . . . . . . . . . . . . . . Robots Disrupted . | . . . . . . . . . . . . . . . . . . . . . . . . . . . . . Combat Hostiles . | . . . . . . . . . . . . . . . . . . . . . . . . . . . . . Robots Corrupted 3 | . . . . . . . 2 1 . . . . . . . . . . . . . . . . . . . . Combat Hostiles . | . . . . . . . . . . . . . . . . . . . . . . . . . . . . . Parts Fried 19 | . . . 3 . . . 10 2 . . . . . . . . . . 1 1 . 2 . . . . . . Impact Corruptions 19 | . . . . . . . 14 5 . . . . . . . . . . . . . . . . . . . . Robots Melted 1 | . . . . . . . 1 . . . . . . . . . . . . . . . . . . . . . Combat Hostiles . | . . . . . . . . . . . . . . . . . . . . . . . . . . . . . Parts Melted 7 | . . . 2 . . 1 3 . . . . . . . . . . . 1 . . . . . . . . . Heat Transferred 2936 | . . . 2196 . . 185 555 . . . . . . . . . . . . . . . . . . . . . Parts Sabotaged . | . . . . . . . . . . . . . . . . . . . . . . . . . . . . . Parts Stolen . | . . . . . . . . . . . . . . . . . . . . . . . . . . . . . Parts Stripped . | . . . . . . . . . . . . . . . . . . . . . . . . . . . . . Power Chain Reactions 1 | . . . 1 . . . . . . . . . . . . . . . . . . . . . . . . . Alert | -11 -10 -10 -9 -9 -9 -8 -8 -7 -7 -7 -7 -6 -6 -6 -6 -6 -5 -5 -5 -5 -5 -5 -4 -3 -3 -2 -2 -1 ------- Run | Yrd Mat Min Mat Min Exi Min Mat Fac Low Low Dat Pro Fac Low Low Zio Pro Fac Ext Cet Arc Hub Fac Res Tes Res Qua Acc Maximum Alert Level 5 | . . . 2 1 . . . . . . . . . . . . . . 1 . . . . . 5 4 5 5 Low Security (%) 80 | 100 100 100 60 . . 100 100 100 . . . . 100 . . . . 100 61 100 100 100 100 100 . . . . Level 1 9 | . . . 23 100 . . . . . . . . . . . . . . 38 . . . . . . . . . Level 2 3 | . . . 16 . . . . . . . . . . . . . . . . . . . . . . . 1 . Level 3 . | . . . . . . . . . . . . . . . . . . . . . . . . . . 75 . 9 Level 4 2 | . . . . . . . . . . . . . . . . . . . . . . . . . . 24 . 64 Level 5 . | . . . . . . . . . . . . . . . . . . . . . . . . . . . . 20 High Security . | . . . . . . . . . . . . . . . . . . . . . . . . . . . . 4 Max Security 2 | . . . . . . . . . . . . . . . . . . . . . . . . . 99 . 98 . Peak Influence 1974 | 20 147 73 658 246 . 99 134 40 . . . . 34 . . . . 128 373 190 177 69 70 150 1723 1105 1627 1974 Initial 1100 | . 6 33 12 246 . . 35 . . . . . . . . . . 128 58 188 32 54 7 15 47 1100 537 1100 Average 190 | 4 49 50 242 239 . 3 40 9 . . . . 8 . . . . 126 176 96 123 43 22 79 1649 990 1592 1324 Influence Increases 6401 | 60 372 50 1191 . . 129 390 184 90 130 . 60 140 30 90 . 245 3 879 360 215 81 184 258 123 36 27 1074 Destroy 0b10 Robot/C 2460 | . 220 40 720 . . 80 140 . . 120 . . . . 80 . 100 . 440 160 80 . . 60 . . . 220 Destroy 0b10 Robot/NC 565 | 60 35 . 130 . . . 60 35 . . . . 45 . . . . . 45 10 15 15 45 25 15 10 . 20 Destroy Leader 462 | . 58 10 198 . . 20 54 2 . 10 . . 2 . 10 . 10 . 44 . . 4 2 12 . 2 . 24 Allied During Kill 447 | . . . . . . . . . . . . . . . . . . . 215 147 83 2 . . . . . . Successful Hack 172 | . 56 . 13 . . . 7 15 . . . . 33 . . . . 3 . . . . 18 12 . . . 15 Disable Machine 330 | . . . 60 . . . 30 15 . . . . 30 . . . . . 15 15 15 30 45 . 60 . . 15 Destroy Structure 855 | . 3 . 70 . . 29 39 27 . . . . 15 . . . . . 90 28 22 30 44 74 18 24 12 330 Partial Spotted 135 | . . . . . . . . . . . . . 15 . . . . . . . . . 15 60 15 . . 30 Lose Combat Pursuer 975 | . . . . . . . 60 90 90 . . 60 . 30 . . 135 . 30 . . . 15 15 15 . 15 420 Influence Decreases 7298 | 50 296 103 593 405 226 38 481 182 42 150 30 60 130 20 36 74 40 87 663 615 140 223 169 204 37 934 419 851 Entered New Map 3195 | . 4 53 21 385 226 . 56 . 2 10 30 . . 4 4 74 . 77 63 149 50 103 8 15 37 754 419 651 Time Decay 3363 | 50 292 50 562 20 . 38 405 182 40 140 . 60 130 16 32 . 40 10 440 206 40 60 151 189 . 30 . 180 Lost Part 180 | . . . 10 . . . 20 . . . . . . . . . . . 70 . 10 40 10 . . . . 20 Lost Ally 410 | . . . . . . . . . . . . . . . . . . . 90 260 40 20 . . . . . . Purge Threat 150 | . . . . . . . . . . . . . . . . . . . . . . . . . . 150 . . Squads Dispatched 32 | . 1 . 5 . . . 1 5 . . . . 4 . . . . . . . . 2 4 . 6 . . 4 Investigation 8 | . 1 . 2 . . . . 2 . . . . 2 . . . . . . . . . 1 . . . . . Extermination 6 | . . . . . . . . 1 . . . . 1 . . . . . . . . . 2 . . . . 2 Reinforcement 10 | . . . 3 . . . 1 2 . . . . 1 . . . . . . . . 2 1 . . . . . Assault 8 | . . . . . . . . . . . . . . . . . . . . . . . . . 6 . . 2 Garrison . | . . . . . . . . . . . . . . . . . . . . . . . . . . . . . Intercept . | . . . . . . . . . . . . . . . . . . . . . . . . . . . . . Searches Triggered . | . . . . . . . . . . . . . . . . . . . . . . . . . . . . . Unchained Authorized 1 | . . . . . . . . . . . . . . . . . . . . . . . . . . . . 1 Data Miner Redirects 1 | . . . . . . . . . . . . . . . . . . . . . . . . . . . . 1 Construction Impeded . | . . . . . . . . . . . . . . . . . . . . . . . . . . . . . Haulers Reinforced 2 | . . . . . . . . . . . . . 1 . . . . . . . . . 1 . . . . . Active Scanning Responses . | . . . . . . . . . . . . . . . . . . . . . . . . . . . . . Cargo Convoy Interrupts . | . . . . . . . . . . . . . . . . . . . . . . . . . . . . . Stealth | -11 -10 -10 -9 -9 -9 -8 -8 -7 -7 -7 -7 -6 -6 -6 -6 -6 -5 -5 -5 -5 -5 -5 -4 -3 -3 -2 -2 -1 --------- Run | Yrd Mat Min Mat Min Exi Min Mat Fac Low Low Dat Pro Fac Low Low Zio Pro Fac Ext Cet Arc Hub Fac Res Tes Res Qua Acc Distress Signals 20 | . . . 5 . . . 1 1 . . . . 1 . . . . . 1 2 . 3 . 5 . . . 1 Communications Jammed . | . . . . . . . . . . . . . . . . . . . . . . . . . . . . . Distress Signals . | . . . . . . . . . . . . . . . . . . . . . . . . . . . . . Times Spotted 300 | . 18 2 55 . . 4 14 14 7 8 . 7 3 1 2 . 14 . 29 9 4 18 8 14 11 2 9 47 Peak Tracking Total 18 | . 5 2 5 . . 3 4 6 6 5 . 4 2 3 2 . 10 . 5 5 2 14 3 5 11 2 9 18 Tactical Retreats 30 | . . . . . . . 2 4 1 . . 3 . 1 . . 3 . 2 . . . 1 1 1 . 1 10 Traps | -11 -10 -10 -9 -9 -9 -8 -8 -7 -7 -7 -7 -6 -6 -6 -6 -6 -5 -5 -5 -5 -5 -5 -4 -3 -3 -2 -2 -1 ------- Run | Yrd Mat Min Mat Min Exi Min Mat Fac Low Low Dat Pro Fac Low Low Zio Pro Fac Ext Cet Arc Hub Fac Res Tes Res Qua Acc Traps Triggered 11 | . 1 . 2 . . . . 1 . . . . 1 . . . . . 3 . . 2 1 . . . . . Indirectly . | . . . . . . . . . . . . . . . . . . . . . . . . . . . . . Trap Hack Attempts . | . . . . . . . . . . . . . . . . . . . . . . . . . . . . . Triggered . | . . . . . . . . . . . . . . . . . . . . . . . . . . . . . Disarmed . | . . . . . . . . . . . . . . . . . . . . . . . . . . . . . Reprogrammed . | . . . . . . . . . . . . . . . . . . . . . . . . . . . . . Reused . | . . . . . . . . . . . . . . . . . . . . . . . . . . . . . Traps Extracted . | . . . . . . . . . . . . . . . . . . . . . . . . . . . . . Installed . | . . . . . . . . . . . . . . . . . . . . . . . . . . . . . Triggered . | . . . . . . . . . . . . . . . . . . . . . . . . . . . . . Machines | -11 -10 -10 -9 -9 -9 -8 -8 -7 -7 -7 -7 -6 -6 -6 -6 -6 -5 -5 -5 -5 -5 -5 -4 -3 -3 -2 -2 -1 ---------- Run | Yrd Mat Min Mat Min Exi Min Mat Fac Low Low Dat Pro Fac Low Low Zio Pro Fac Ext Cet Arc Hub Fac Res Tes Res Qua Acc Machines Disabled 23 | . . . 4 . . . 2 1 . . . . 2 . . . . . 2 1 1 2 3 . 4 . . 1 Max in Single Turn 2 | . . . 2 . . . 1 1 . . . . 1 . . . . . 1 1 . 1 1 . 1 . . 1 Garrison Access 6 | . . . . . . . . 1 . . . . 1 . . . . . . . . . 1 2 . . . 1 Network Hub 2 | . . . . . . . . . . . . . . . . . . . . . . 2 . . . . . . Energy Cycler 2 | . . . . . . . . . . . . . . . . . . . 2 . . . . . . . . . Machines Repaired . | . . . . . . . . . . . . . . . . . . . . . . . . . . . . . Machines Dismantled 2 | . . . . . . . . . . . . . . . . . . . . 1 . 1 . . . . . . Machines Sabotaged . | . . . . . . . . . . . . . . . . . . . . . . . . . . . . . Overloaded Fab Kills . | . . . . . . . . . . . . . . . . . . . . . . . . . . . . . Hacking | -11 -10 -10 -9 -9 -9 -8 -8 -7 -7 -7 -7 -6 -6 -6 -6 -6 -5 -5 -5 -5 -5 -5 -4 -3 -3 -2 -2 -1 --------- Run | Yrd Mat Min Mat Min Exi Min Mat Fac Low Low Dat Pro Fac Low Low Zio Pro Fac Ext Cet Arc Hub Fac Res Tes Res Qua Acc Machines Accessed 57 | . 8 . 7 . 2 . 5 11 . . 4 . 8 . . . . 1 . 1 . . 4 4 . . . 2 Terminals 28 | . 7 . 5 . . . 4 5 . . . . 5 . . . . 1 . 1 . . . . . . . . Fabricators 6 | . . . . . . . . 4 . . . . . . . . . . . . . . 2 . . . . . Repair Stations 4 | . . . 1 . . . . . . . . . 2 . . . . . . . . . . 1 . . . . Recycling Units 1 | . 1 . . . . . . . . . . . . . . . . . . . . . . . . . . . Scanalyzers 6 | . . . 1 . . . 1 1 . . . . . . . . . . . . . . 1 1 . . . 1 Garrison Access 6 | . . . . . . . . 1 . . . . 1 . . . . . . . . . 1 2 . . . 1 Total Hacks 169 | . 31 . 16 . 2 . 9 22 . . 32 . 20 . . . . 1 . 2 . . 15 13 . . . 6 Successful 97 | . 12 . 8 . 2 . 5 15 . . 32 . 5 . . . . 1 . . . . 7 8 . . . 2 Failed 71 | . 19 . 8 . . . 4 7 . . . . 15 . . . . . . 2 . . 8 4 . . . 4 Catastrophic 9 | . 1 . 2 . . . . 2 . . . . 2 . . . . . . 2 . . . . . . . . Database Lockouts 1 | . . . . . . . . . . . . . . . . . . . . . . . . 1 . . . . Manual 55 | . 24 . 6 . 1 . 6 8 . . . . 8 . . . . . . 1 . . 1 . . . . . Terminals 66 | . 28 . 12 . . . 7 7 . . . . 9 . . . . 1 . 2 . . . . . . . . Fabricators 15 | . . . . . . . . 11 . . . . . . . . . . . . . . 4 . . . . . Repair Stations 14 | . . . 2 . . . . . . . . . 6 . . . . . . . . . . 6 . . . . Recycling Units 3 | . 3 . . . . . . . . . . . . . . . . . . . . . . . . . . . Scanalyzers 19 | . . . 2 . . . 2 3 . . . . . . . . . . . . . . 4 5 . . . 3 Garrison Access 18 | . . . . . . . . 1 . . . . 5 . . . . . . . . . 7 2 . . . 3 Terminal Hacks 55 | . 11 . 4 . 2 . 3 2 . . 32 . . . . . . 1 . . . . . . . . . . Record 12 | . . . . . 1 . . . . . 11 . . . . . . . . . . . . . . . . . Part Schematic 15 | . 3 . . . . . . . . . 12 . . . . . . . . . . . . . . . . . Robot Schematic 6 | . . . . . . . . . . . 6 . . . . . . . . . . . . . . . . . Robot Analysis 7 | . 5 . 1 . . . 1 . . . . . . . . . . . . . . . . . . . . . Prototype ID Bank 7 | . 3 . 1 . . . . . . . 3 . . . . . . . . . . . . . . . . . Open Door 1 | . . . . . . . . . . . . . . . . . . 1 . . . . . . . . . . Open DSF 1 | . . . . . . . . 1 . . . . . . . . . . . . . . . . . . . . Branch Access Points 2 | . . . 1 . . . . 1 . . . . . . . . . . . . . . . . . . . . Locate Traps 1 | . . . . . . . 1 . . . . . . . . . . . . . . . . . . . . . Hauler Manifests 2 | . . . 1 . . . 1 . . . . . . . . . . . . . . . . . . . . . Proto ID Catalog 1 | . . . . . 1 . . . . . . . . . . . . . . . . . . . . . . . Fabricator Hacks 8 | . . . . . . . . 5 . . . . . . . . . . . . . . 3 . . . . . Network Status 1 | . . . . . . . . 1 . . . . . . . . . . . . . . . . . . . . Load Schematic 5 | . . . . . . . . 3 . . . . . . . . . . . . . . 2 . . . . . Build 2 | . . . . . . . . 1 . . . . . . . . . . . . . . 1 . . . . . Repair Station Hacks 7 | . . . 2 . . . . . . . . . 3 . . . . . . . . . . 2 . . . . Scan Component 4 | . . . 1 . . . . . . . . . 2 . . . . . . . . . . 1 . . . . Repair 3 | . . . 1 . . . . . . . . . 1 . . . . . . . . . . 1 . . . . Recycling Unit Hacks 1 | . 1 . . . . . . . . . . . . . . . . . . . . . . . . . . . Retrieve Components 1 | . 1 . . . . . . . . . . . . . . . . . . . . . . . . . . . Scanalyzer 14 | . . . 2 . . . 2 3 . . . . . . . . . . . . . . 2 4 . . . 1 Insert Component 1 | . . . 1 . . . . . . . . . . . . . . . . . . . . . . . . . Analyze 1 | . . . 1 . . . . . . . . . . . . . . . . . . . . . . . . . Retrieve Study 12 | . . . . . . . 2 3 . . . . . . . . . . . . . . 2 4 . . . 1 Garrison Access Hacks 6 | . . . . . . . . 1 . . . . 1 . . . . . . . . . 1 2 . . . 1 Seal Access 6 | . . . . . . . . 1 . . . . 1 . . . . . . . . . 1 2 . . . 1 Unauthorized Hacks 6 | . . . . . . . . 4 . . . . 1 . . . . . . . . . 1 . . . . . Terminals 3 | . . . . . . . . 2 . . . . 1 . . . . . . . . . . . . . . . Assimilate 2 | . . . . . . . . 1 . . . . 1 . . . . . . . . . . . . . . . Botnet 1 | . . . . . . . . 1 . . . . . . . . . . . . . . . . . . . . Fabricators 3 | . . . . . . . . 2 . . . . . . . . . . . . . . 1 . . . . . Recompile 3 | . . . . . . . . 2 . . . . . . . . . . . . . . 1 . . . . . Repair Stations . | . . . . . . . . . . . . . . . . . . . . . . . . . . . . . Recycling Units . | . . . . . . . . . . . . . . . . . . . . . . . . . . . . . Scanalyzers . | . . . . . . . . . . . . . . . . . . . . . . . . . . . . . Garrison Access . | . . . . . . . . . . . . . . . . . . . . . . . . . . . . . Data Cores Recovered 6 | . . . . . . . 1 1 . . . . . . . . . . . . . . 1 1 . 1 . 1 Used . | . . . . . . . . . . . . . . . . . . . . . . . . . . . . . Hacking Detections 35 | . 7 . 4 . . . 5 6 . . . . 7 . . . . . . 1 . . 2 1 . . . 2 Full Trace Events 1 | . . . . . . . . . . . . . 1 . . . . . . . . . . . . . . . Feedback Events . | . . . . . . . . . . . . . . . . . . . . . . . . . . . . . Feedback Blocked . | . . . . . . . . . . . . . . . . . . . . . . . . . . . . . Robot Schematics Acquired 6 | . . . . . . . . . . . 6 . . . . . . . . . . . . . . . . . Robots Built . | . . . . . . . . . . . . . . . . . . . . . . . . . . . . . Authchips . | . . . . . . . . . . . . . . . . . . . . . . . . . . . . . Time . | . . . . . . . . . . . . . . . . . . . . . . . . . . . . . Total Robot Build Rating . | . . . . . . . . . . . . . . . . . . . . . . . . . . . . . Part Schematics Acquired 16 | . 3 . 1 . . . . . . . 12 . . . . . . . . . . . . . . . . . Parts Built 2 | . . . . . . . . 1 . . . . . . . . . . . . . . 1 . . . . . Authchips 2 | . . . . . . . . 1 . . . . . . . . . . . . . . 1 . . . . . Time 98 | . . . . . . . . 49 . . . . . . . . . . . . . . 49 . . . . . Total Part Build Rating 4 | . . . . . . . . 2 . . . . . . . . . . . . . . 2 . . . . . Part Studies Acquired 12 | . . . . . . . 2 3 . . . . . . . . . . . . . . 2 4 . . . 1 Parts Repaired 3 | . . . 1 . . . . . . . . . 1 . . . . . . . . . . 1 . . . . Time 70 | . . . 32 . . . . . . . . . 19 . . . . . . . . . . 19 . . . . Parts Recycled . | . . . . . . . . . . . . . . . . . . . . . . . . . . . . . Recycled Matter . | . . . . . . . . . . . . . . . . . . . . . . . . . . . . . Retrieved Matter . | . . . . . . . . . . . . . . . . . . . . . . . . . . . . . Retrieved Components 6 | . 6 . . . . . . . . . . . . . . . . . . . . . . . . . . . Parts Scanalyzed 1 | . . . 1 . . . . . . . . . . . . . . . . . . . . . . . . . Part Schematics Acquired 1 | . . . 1 . . . . . . . . . . . . . . . . . . . . . . . . . Parts Damaged . | . . . . . . . . . . . . . . . . . . . . . . . . . . . . . Bothacking | -11 -10 -10 -9 -9 -9 -8 -8 -7 -7 -7 -7 -6 -6 -6 -6 -6 -5 -5 -5 -5 -5 -5 -4 -3 -3 -2 -2 -1 ------------ Run | Yrd Mat Min Mat Min Exi Min Mat Fac Low Low Dat Pro Fac Low Low Zio Pro Fac Ext Cet Arc Hub Fac Res Tes Res Qua Acc Used RIF Installer . | . . . . . . . . . . . . . . . . . . . . . . . . . . . . . Robots Hacked . | . . . . . . . . . . . . . . . . . . . . . . . . . . . . . Non-combat . | . . . . . . . . . . . . . . . . . . . . . . . . . . . . . Combat . | . . . . . . . . . . . . . . . . . . . . . . . . . . . . . Robot Hacks Applied . | . . . . . . . . . . . . . . . . . . . . . . . . . . . . . Relay Couplers Released . | . . . . . . . . . . . . . . . . . . . . . . . . . . . . . Fabnet Peak Effective % . | . . . . . . . . . . . . . . . . . . . . . . . . . . . . . Robots Rewired 15 | . . . . . . . . . . . . . . . . . . . 15 . . . . . . . . . Allies Hacked . | . . . . . . . . . . . . . . . . . . . . . . . . . . . . . Hacks Repelled . | . . . . . . . . . . . . . . . . . . . . . . . . . . . . . Allies | -11 -10 -10 -9 -9 -9 -8 -8 -7 -7 -7 -7 -6 -6 -6 -6 -6 -5 -5 -5 -5 -5 -5 -4 -3 -3 -2 -2 -1 -------- Run | Yrd Mat Min Mat Min Exi Min Mat Fac Low Low Dat Pro Fac Low Low Zio Pro Fac Ext Cet Arc Hub Fac Res Tes Res Qua Acc Total Allies 42 | . . . . . . . . . . . . . 13 . . . . . 22 5 . . . 2 . . . . Largest Group 17 | . . . . . . . . . . . . . 5 1 . . . . 17 17 9 4 . 2 . . . . Highest-Rated Group 810 | . . . . . . . . . . . . . 117 10 . . . . 584 810 653 317 . 52 . . . . Highest-Rated Ally 159 | . . . . . . . . . . . . . 31 10 . . . . 159 159 159 96 . 26 . . . . Total Orders 39 | . . . . . . . . . . . . . . . . . . 1 13 . . 4 3 10 . 2 . 6 STAY 5 | . . . . . . . . . . . . . . . . . . . 3 . . 2 . . . . . . FOLLOW 4 | . . . . . . . . . . . . . . . . . . . 3 . . 1 . . . . . . RETURN 30 | . . . . . . . . . . . . . . . . . . 1 7 . . 1 3 10 . 2 . 6 Ally Attacks 249 | . . . . . . . . . . . . . . . . . . . 100 100 39 10 . . . . . . Total Damage 6265 | . . . . . . . . . . . . . . . . . . . 2078 2795 1200 192 . . . . . . Kills 27 | . . . . . . . . . . . . . . . . . . . 13 8 6 . . . . . . . Allies Corrupted 1 | . . . . . . . . . . . . . . . . . . . . . . 1 . . . . . . Allies Melted . | . . . . . . . . . . . . . . . . . . . . . . . . . . . . . Intel | -11 -10 -10 -9 -9 -9 -8 -8 -7 -7 -7 -7 -6 -6 -6 -6 -6 -5 -5 -5 -5 -5 -5 -4 -3 -3 -2 -2 -1 ------- Run | Yrd Mat Min Mat Min Exi Min Mat Fac Low Low Dat Pro Fac Low Low Zio Pro Fac Ext Cet Arc Hub Fac Res Tes Res Qua Acc Active Infowar (turns) 9696 | 8 1100 116 1881 44 328 542 1082 234 109 371 22 416 362 82 428 186 387 23 816 421 82 125 315 . . . . 216 Optics 2052 | . . . . . . . . . . . . . 243 82 428 186 387 23 487 . . . . . . . . 216 Sensors 3093 | . . . . . . . . . 94 371 22 416 12 77 428 185 387 8 . 378 82 125 315 . . . . 193 Seismic 7590 | 8 1100 116 1881 44 328 542 1082 234 15 . . . 350 82 428 186 387 2 335 421 9 . 40 . . . . . Robot Analysis Total 7 | . 5 . 1 . . . 1 . . . . . . . . . . . . . . . . . . . . . Derelict Logs Recovered 10 | . . . . . . . . . 1 2 . 1 . 1 2 2 1 . . . . . . . . . . . Drone Launches 30 | . . . . . . . . . . . . . . . . . . 1 7 . . 1 3 10 . 2 . 6 Drone Recoveries 30 | . . . . . . . . . . . . . . . . . . 1 7 . . 1 3 10 . 2 . 6 Exploration | -11 -10 -10 -9 -9 -9 -8 -8 -7 -7 -7 -7 -6 -6 -6 -6 -6 -5 -5 -5 -5 -5 -5 -4 -3 -3 -2 -2 -1 ------------- Run | Yrd Mat Min Mat Min Exi Min Mat Fac Low Low Dat Pro Fac Low Low Zio Pro Fac Ext Cet Arc Hub Fac Res Tes Res Qua Acc Turns Passed 11695 | 238 1171 116 1881 44 328 561 1111 624 109 385 22 416 362 82 428 186 387 23 1098 437 82 125 429 397 124 73 70 386 Spaces Moved 14549 | 57 578 52 835 28 205 327 529 1393 378 609 80 904 795 209 526 632 348 64 1316 387 131 206 1050 1001 289 184 289 1147 Core 8 | 8 . . . . . . . . . . . . . . . . . . . . . . . . . . . . Treads 2603 | 49 578 52 835 28 205 327 529 . . . . . . . . . . . . . . . . . . . . . Legs . | . . . . . . . . . . . . . . . . . . . . . . . . . . . . . Wheels . | . . . . . . . . . . . . . . . . . . . . . . . . . . . . . Hover . | . . . . . . . . . . . . . . . . . . . . . . . . . . . . . Flight 11938 | . . . . . . . . 1393 378 609 80 904 795 209 526 632 348 64 1316 387 131 206 1050 1001 289 184 289 1147 Fastest Speed 8 | 50 160 160 160 160 160 160 158 25 23 23 27 23 26 26 19 26 19 19 19 24 24 17 17 17 19 15 15 8 Average Speed 47 | 144 160 160 160 160 160 160 162 27 26 26 27 26 26 26 25 26 25 19 21 24 24 22 20 18 19 15 17 16 Slowest Speed 240 | 160 160 160 160 160 160 160 240 114 27 27 27 27 27 26 26 26 26 19 90 24 24 24 90 19 19 15 19 19 Overloaded Moves 96 | . . . . . . . . . 6 3 . 12 . . 7 . 28 . . . . 17 . . . . . 23 Propulsion Burnouts . | . . . . . . . . . . . . . . . . . . . . . . . . . . . . . Robots Hopped 40 | . . . . . . . . 7 . 1 . 1 1 . . . . . 10 . . 3 4 2 . 3 2 6 Potential Cave-ins 3 | . . . . . . . . . . . . . . . . . . . . . . . . . . . . 3 Cave-ins Triggered . | . . . . . . . . . . . . . . . . . . . . . . . . . . . . . Exploration Rate (%) 50 | 4 96 22 86 12 60 80 43 32 62 79 68 86 26 52 69 82 55 4 81 74 78 30 31 34 45 6 42 37 Regions Visited 28 Branch Regions 18 Pre-discovered Areas 5 | . . . . . 1 . . . . 2 1 1 . . . . . . . . . . . . . . . . Known Exits Taken 21 | . . . 1 . . . . 1 1 1 1 1 1 1 1 1 1 1 1 1 1 1 1 1 1 1 1 . Unknown Exits Taken 7 | 1 1 1 . 1 1 1 1 . . . . . . . . . . . . . . . . . . . . . Scrap Searched 18 | . . . . . . 1 . . 1 2 . 5 . . 3 4 2 . . . . . . . . . . . Spaces Dug 187 | . . . . . . . 5 17 . 3 . 34 13 6 17 . 4 . 10 4 1 3 19 8 9 6 4 24 Terrain Destroyed 713 | . . . 78 . . 37 40 29 . 64 . 70 16 6 72 . 16 . 42 4 1 12 22 36 9 9 6 144 Melee 183 | . . . . . . . 5 17 . 3 . 31 13 6 17 . 4 . 10 4 1 3 18 8 9 6 4 24 Projectile 42 | . . . . . . . . . . . . 10 3 . 10 . . . . . . 1 4 . . 3 2 9 AOE 487 | . . . 78 . . 37 35 12 . 61 . 29 . . 45 . 12 . 31 . . 8 . 28 . . . 111 Terrain Rammed . | . . . . . . . . . . . . . . . . . . . . . . . . . . . . . Walls Destroyed . | . . . . . . . . . . . . . . . . . . . . . . . . . . . . . Machines Disabled . | . . . . . . . . . . . . . . . . . . . . . . . . . . . . . Actions | -11 -10 -10 -9 -9 -9 -8 -8 -7 -7 -7 -7 -6 -6 -6 -6 -6 -5 -5 -5 -5 -5 -5 -4 -3 -3 -2 -2 -1 --------- Run | Yrd Mat Min Mat Min Exi Min Mat Fac Low Low Dat Pro Fac Low Low Zio Pro Fac Ext Cet Arc Hub Fac Res Tes Res Qua Acc Total 18278 | 186 733 65 1177 27 206 354 696 1588 383 815 79 1025 914 228 781 649 636 73 1990 713 174 267 1198 1188 337 208 299 1289 Wait 2382 | 106 77 1 100 . . 14 60 105 4 195 . 73 68 12 211 5 275 5 427 295 35 34 63 126 11 11 . 69 Move 14444 | 56 577 51 834 27 204 326 528 1379 377 606 79 901 792 208 525 631 347 63 1296 386 130 199 1042 996 288 177 285 1134 Hop 36 | . . . . . . . . 6 . 1 . 1 1 . . . . . 9 . . 3 3 2 . 3 1 6 Pick Up 95 | 4 12 . 20 . 1 1 9 12 . . . . 4 . 3 2 . 1 2 2 1 . 3 9 3 . 3 3 Fast Attach 80 | 7 1 . 6 . . . 9 8 . . . . 5 . . 2 . . 1 5 2 3 11 7 7 . 1 5 Attach 50 | . . . 3 . . . 2 10 . . . . 1 1 . . 3 2 4 2 1 2 4 6 . 1 1 7 Detach 31 | . 1 . . . . . . 1 . . . . 3 . . 1 4 . 3 1 . 1 4 4 1 . . 7 Swap 115 | 1 8 1 14 . . 1 9 7 2 2 . 2 5 . 8 2 . 2 12 2 . 5 11 7 2 3 . 9 Drop 134 | . 6 1 33 . 1 1 17 24 . . . . 7 . 2 4 . . . 4 . 3 6 12 9 . 2 2 Fire 390 | 12 43 10 159 . . 10 23 2 . 8 . 16 3 . 15 . 2 . 44 . . 2 15 4 . 3 2 17 Melee 349 | . . . . . . . 39 34 . 3 . 32 25 7 17 2 5 . 55 8 5 6 36 15 16 10 4 30 Ram . | . . . . . . . . . . . . . . . . . . . . . . . . . . . . . Kick . | . . . . . . . . . . . . . . . . . . . . . . . . . . . . . Crush 17 | . 8 1 7 . . 1 . . . . . . . . . . . . . . . . . . . . . . Escape Stasis 51 | . . . . . . . . . . . . . . . . . . . 45 . . 6 . . . . . . Rewire 93 | . . . 1 . . . . . . . . . . . . . . . 92 . . . . . . . . . Trap . | . . . . . . . . . . . . . . . . . . . . . . . . . . . . . Miscellaneous 11 | . . . . . . . . . . . . . . . . . . . . 8 . 3 . . . . . . Route ------- -11/Scrapyard -10/Materials (discovered 5 exits: *Mat x3 / [*Min x2]) -10/Mines -9/Materials (discovered 5 exits: *Mat x3 / *Min x2) -9/Mines -9/Exiles -8/Mines -8/Materials -7/Factory (discovered 2 exits: *Low x2) -7/Lower Caves -7/Lower Caves (discovered 2 exits: *Fac / *Dat) -7/Data Miner -6/Proximity Caves -6/Factory (discovered 3 exits: *Fac x2 / *Low) -6/Lower Caves -6/Lower Caves (discovered 2 exits: *Fac / *Zio) -6/Zion -5/Proximity Caves -5/Factory -5/Extension (discovered 3 exits: *Fac x2 / *Cet) -5/Cetus (discovered 3 exits: *Fac x2 / *Arc) -5/Archives (discovered 2 exits: *Fac / *Hub) -5/Hub_04(d) (discovered 4 exits: *Fac x4) -4/Factory (discovered 7 exits: *Res x4 / Upp x2 / Arm) -3/Research (discovered 5 exits: *Res x3 / *Tes x2) -3/Testing -2/Research -2/Quarantine -1/Access To Epsilon Eridani History --------- Turn | Location | Event 13 | -11/Scrapyard | Discovered new exit (range 15) 239 | -11/Scrapyard | Entered Materials 310 | -10/Materials | Build established: Mutant 576 | -10/Materials | Discovered new exit (range 16) 771 | -10/Materials | Discovered new exit (range 15) 983 | -10/Materials | Discovered new exit (range 16) 1128 | -10/Materials | Discovered new exit (range 9) 1362 | -10/Materials | Discovered new exit (range 16) 1410 | -10/Materials | Entered Mines 1481 | -10/Mines | Assembled infested the area 1510 | -10/Mines | Discovered new exit (range 8) 1526 | -10/Mines | Entered Materials 1526 | -9/Materials | Evolved 2 slots: Propulsion x1, Utility x1 2069 | -9/Materials | Discovered new exit (range 3) 2747 | -9/Materials | Discovered new exit (range 16) 2949 | -9/Materials | Identified exit to Mines 3089 | -9/Materials | Repaired Mni. Grenade Launcher 3128 | -9/Materials | Discovered new exit (range 16) 3407 | -9/Materials | Entered Mines 3444 | -9/Mines | Deemed a non-threat by the Exiles lab entrance 3444 | -9/Mines | Discovered new exit (range 5) 3451 | -9/Mines | Entered Exiles 3491 | -9/Exiles | Met 8R-AWN 3517 | -9/Exiles | Met EX-HEX 3560 | -9/Exiles | Met EX-BIN 3581 | -9/Exiles | Aligned with FarCom system 3583 | -9/Exiles | Given EX-Vault access code 3619 | -9/Exiles | Opened EX-Vault 3631 | -9/Exiles | Found Longsword +1 3661 | -9/Exiles | Warned to stay clear of 0b10 Research branches 3707 | -9/Exiles | Met EX-DEC 3715 | -9/Exiles | Learned location of Zion (-6) 3762 | -9/Exiles | Discovered new exit (range 14) 3779 | -9/Exiles | Left Exiles lab with Longsword +1 3779 | -9/Exiles | Entered Mines 4014 | -8/Mines | Found a Scrap Suit stashed away for nefarious purposes 4322 | -8/Mines | Discovered new exit (range 8) 4340 | -8/Mines | Entered Materials 4340 | -8/Materials | Evolved 2 slots: Propulsion x1, Utility x1 4636 | -8/Materials | Build established: Scavenger-Mutant 5119 | -8/Materials | Build established: Mutant 5420 | -8/Materials | Discovered new exit (range 10) 5451 | -8/Materials | Entered Factory 5451 | -7/Factory | Evolved 2 slots: Propulsion x1, Utility x1 5681 | -7/Factory | Identified exit to DSF 5753 | -7/Factory | Build established: Sprinter 5771 | -7/Factory | Identified exit to Lower Caves 5954 | -7/Factory | Fabricated Imp. Flight Unit? 6075 | -7/Factory | Entered Lower Caves 6086 | -7/Lower Caves | Build established: Hacker-Sprinter 6129 | -7/Lower Caves | Learned Factory terminal intel 6153 | -7/Lower Caves | Spotted B-75 Beast 6170 | -7/Lower Caves | Attracted the attention of an 0b10 checkpoint 6172 | -7/Lower Caves | Discovered new exit (range 10) 6175 | -7/Lower Caves | Identified exit to Lower Caves 6184 | -7/Lower Caves | Entered another Lower Caves area 6194 | -7/Lower Caves | Discovered new exit (range 8) 6195 | -7/Lower Caves | Identified exit to Factory 6249 | -7/Lower Caves | Spotted B-75 Beast 6300 | -7/Lower Caves | Encountered a Warlord checkpoint 6305 | -7/Lower Caves | Learned location of Extension (-5) 6565 | -7/Lower Caves | Discovered new exit (range 13) 6568 | -7/Lower Caves | Identified exit to Data Miner 6569 | -7/Lower Caves | Entered Data Miner 6569 | -7/Data Miner | Discovered new exit (range 6) 6575 | -7/Data Miner | Met Data Miner 6582 | -7/Data Miner | Learned location of Section 7 (-2) 6582 | -7/Data Miner | Acquired the access code to Warlord's prototype stash 6585 | -7/Data Miner | Received God Mode back door access code from Data Miner 6591 | -7/Data Miner | Identified exit to Proximity Caves 6591 | -7/Data Miner | Entered Proximity Caves 6839 | -6/Proximity Caves | Spotted B-75 Beast 7004 | -6/Proximity Caves | Attracted the attention of an 0b10 checkpoint 7004 | -6/Proximity Caves | Discovered exit to Factory (range 11) 7007 | -6/Proximity Caves | Entered Factory 7007 | -6/Factory | Evolved 2 slots: Power x1, Utility x1 7008 | -6/Factory | Loaded intel: 26 terminal locations 7111 | -6/Factory | Discovered new exit (range 15) 7116 | -6/Factory | Identified exit to Factory 7192 | -6/Factory | Repaired Imp. Light Armor Plating 7247 | -6/Factory | Discovered exit to Factory (range 21) 7252 | -6/Factory | Discovered new exit (range 8) 7254 | -6/Factory | Identified exit to Lower Caves 7369 | -6/Factory | Entered Lower Caves 7369 | -6/Lower Caves | Accompanied by 1 ally 7376 | -6/Lower Caves | Identified exit to Lower Caves 7384 | -6/Lower Caves | Encountered a Warlord checkpoint 7451 | -6/Lower Caves | Entered another Lower Caves area 7453 | -6/Lower Caves | Discovered exit to Factory (range 10) 7454 | -6/Lower Caves | Learned Factory stockpile data 7585 | -6/Lower Caves | Learned Factory machine intel 7669 | -6/Lower Caves | Build established: Scout 7878 | -6/Lower Caves | Discovered new exit (range 3) 7878 | -6/Lower Caves | Identified exit to Zion 7879 | -6/Lower Caves | Entered Zion 7889 | -6/Zion | Found CR-A16's Pointy Stick 7905 | -6/Zion | Given A8's code to call for help 7992 | -6/Zion | Given the Hacking Drone Bay 7993 | -6/Zion | Found Prototype Device 8032 | -6/Zion | Identified exit to Proximity Caves 8040 | -6/Zion | Identified Hacking Drone Bay 8043 | -6/Zion | Visited the Megawrench Repair Shop 8043 | -6/Zion | Megawrench repaired 6 parts 8065 | -6/Zion | Entered Proximity Caves 8413 | -5/Proximity Caves | Attracted the attention of an 0b10 checkpoint 8446 | -5/Proximity Caves | Discovered exit to Factory (range 9) 8452 | -5/Proximity Caves | Entered Factory 8452 | -5/Factory | Evolved 2 slots: Propulsion x2 8454 | -5/Factory | Loaded intel: 247 machine locations 8474 | -5/Factory | Discovered new exit (range 10) 8475 | -5/Factory | Identified exit to Extension 8475 | -5/Factory | Entered Extension 8657 | -5/Extension | Rescued a captive Derelict 8937 | -5/Extension | Build established: Commander-Sprinter 8940 | -5/Extension | Warlord forces began an assault 8960 | -5/Extension | Spotted B-75 Beast 9044 | -5/Extension | Spotted B-75 Beast 9047 | -5/Extension | Discovered new exit (range 4) 9066 | -5/Extension | Destroyed B-75 Beast 9086 | -5/Extension | Lost 3 allies 9093 | -5/Extension | Lost 4 parts (1p2n1u) 9175 | -5/Extension | Disrupted transfer network 9329 | -5/Extension | Rescued A7 9357 | -5/Extension | Identified exit to Cetus 9371 | -5/Extension | Identified exit to Factory 9456 | -5/Extension | Rescued a captive Derelict 9456 | -5/Extension | Rescued a captive Derelict 9461 | -5/Extension | Rescued a captive Derelict 9464 | -5/Extension | Rescued a captive Derelict 9573 | -5/Extension | Entered Cetus 9573 | -5/Cetus | Accompanied by 17 allies (A7) 9578 | -5/Cetus | Acquired a Cetus Manufacturing Module code from A7 9589 | -5/Cetus | Spotted Cetus Guard 9613 | -5/Cetus | Spotted Cetus Guard 9613 | -5/Cetus | Spotted Cetus Guard 9613 | -5/Cetus | Spotted Cetus Guard 9617 | -5/Cetus | Allies destroyed Cetus Guard 9622 | -5/Cetus | Allies destroyed Cetus Guard 9624 | -5/Cetus | Allies destroyed Cetus Guard 9651 | -5/Cetus | Lost 10 allies 9674 | -5/Cetus | Started Cetus Manufacturing Module 9696 | -5/Cetus | Escorted A7 to Cetus Mainframe 9699 | -5/Cetus | Manufactured an Enhanced Grunt 9702 | -5/Cetus | Discovered new exit (range 15) 9705 | -5/Cetus | Identified exit to Archives 9724 | -5/Cetus | Manufactured an Enhanced Grunt 9749 | -5/Cetus | Manufactured an Enhanced Grunt 9774 | -5/Cetus | Manufactured an Enhanced Grunt 9799 | -5/Cetus | Manufactured an Enhanced Grunt 9835 | -5/Cetus | Spotted Cetus Guard 9835 | -5/Cetus | Spotted Cetus Guard 9846 | -5/Cetus | Spotted Cetus Guard 9849 | -5/Cetus | Allies destroyed Cetus Guard 9854 | -5/Cetus | Allies destroyed Cetus Guard 9859 | -5/Cetus | Allies destroyed Cetus Guard 9861 | -5/Cetus | Found Prototype Device 9861 | -5/Cetus | Identified Exp. Thermal Shield 9871 | -5/Cetus | Discovered exit to Factory (range 16) 9874 | -5/Cetus | Lost 3 allies 9874 | -5/Cetus | Met Revision 17 9913 | -5/Cetus | Discovered exit to Factory (range 15) 9947 | -5/Cetus | Build established: Commander-Scout 10010 | -5/Cetus | Entered Archives 10010 | -5/Archives | Accompanied by 9 allies (A7) 10015 | -5/Archives | Received a hacking code to weaken MAIN.C 10046 | -5/Archives | Discovered new exit (range 13) 10061 | -5/Archives | Discovered exit to Factory (range 14) 10070 | -5/Archives | Lost 4 allies 10074 | -5/Archives | Identified exit to Hub_04(d) 10092 | -5/Archives | Entered Hub_04(d) 10092 | -5/Hub_04(d) | Accompanied by 4 allies 10118 | -5/Hub_04(d) | Discovered exit to Factory (range 16) 10146 | -5/Hub_04(d) | Network Hub disabled 10192 | -5/Hub_04(d) | Spotted Lightning 10199 | -5/Hub_04(d) | Network Hub disabled 10202 | -5/Hub_04(d) | Spotted Lightning 10202 | -5/Hub_04(d) | Spotted Lightning 10204 | -5/Hub_04(d) | Spotted Lightning 10206 | -5/Hub_04(d) | Spotted Lightning 10207 | -5/Hub_04(d) | Spotted Lightning 10217 | -5/Hub_04(d) | Entered Factory 10217 | -4/Factory | Evolved 2 slots: Utility x2 10246 | -4/Factory | Lost 4 parts (1p2n1w) 10302 | -4/Factory | Identified exit to Upper Caves 10302 | -4/Factory | Identified exit to Armory 10326 | -4/Factory | Identified exit to Research 10534 | -4/Factory | Found Prototype Processor 10534 | -4/Factory | Identified Exp. Melee Analysis Suite 10613 | -4/Factory | Fabricated Imp. Flight Unit (x1) 10646 | -4/Factory | Entered Research 10646 | -3/Research | Evolved 2 slots: Propulsion x1, Utility x1 10667 | -3/Research | Repaired Lgt. Nuclear Core+ 10750 | -3/Research | Identified exit to Research 10814 | -3/Research | Identified exit to Testing 10836 | -3/Research | Found Prototype Processor 10846 | -3/Research | Revision forces began assault on 0b10 10970 | -3/Research | Identified Exp. Signal Interpreter 10986 | -3/Research | Found Fusion Bomb Launcher 11010 | -3/Research | Build established: Hacker-Sprinter 11033 | -3/Research | Watched by a mysterious "MATRIX" hacker 11033 | -3/Research | Central database locked down 11043 | -3/Research | Entered Testing 11044 | -3/Testing | Maximum security lockdown engaged 11063 | -3/Testing | Found Prototype Energy Cannon 11063 | -3/Testing | Identified Null Cannon 11130 | -3/Testing | Found Prototype Energy Cannon 11130 | -3/Testing | Identified Hpw. Disruptor Cannon 11144 | -3/Testing | Discovered exit to Research (range 12) 11167 | -3/Testing | Entered Research 11167 | -2/Research | Evolved 2 slots: Power x1, Propulsion x1 11238 | -2/Research | Discovered new exit (range 9) 11240 | -2/Research | Identified exit to Quarantine 11240 | -2/Research | Entered Quarantine 11241 | -2/Quarantine | Maximum security lockdown engaged 11243 | -2/Quarantine | Found Alien Artifact 11287 | -2/Quarantine | Discovered new exit (range 10) 11310 | -2/Quarantine | Identified exit to Access 11310 | -2/Quarantine | Entered Access 11310 | -1/Access | Evolved 2 slots: Propulsion x1, Utility x1 11447 | -1/Access | Spotted B-99 Colossus 11492 | -1/Access | Unchained authorized (1B-0RG) 11553 | -1/Access | Spotted B-99 Colossus 11560 | -1/Access | First assault squad dispatched 11584 | -1/Access | Incoming assault squad redirected 11622 | -1/Access | Identified exit to Surface 11626 | -1/Access | Spotted B-99 Colossus 11677 | -1/Access | High security lockdown imminent 11696 | *** | Escaped! Last Messages --------------- 11679_ Destroyed Xenon Bombardment Thruster. 11679_ U-05 Engineer lays Concrete. 11680_ The unstable cave ceiling collapses. 11681_ U-05 Engineer lays Concrete. 11682_ The unstable cave ceiling collapses. 11682_ U-05 Engineer lays Concrete. 11683_ The unstable cave ceiling collapses. 11683_ U-05 Engineer builds a Wall. 11685_ G-73 Enforcer destroyed. 11687_ The unstable cave ceiling collapses. 11689_ U-05 Engineer builds a Wall. 11693_ Hacking Drone released from Hacking Drone Bay. 11693_ Hacking Drone attempts to hack Terminal... >>Open(Door) Sealed Barrier opened. 11694_ Hacking Drone retrieved by Hacking Drone Bay (no repairs). 11695_ The Access Shell folds into the floor. Map ----- +----------------------------------------------------+ | ????????? !!!?? # ## ### | | ????????? !!!?? # # | | ??????????!! #? # " | | ?????????? #???????????????# # | | ?????????? #???????????????# | | ?????????? #???????????????# !! | | ??????????# #???????????????# ! | | ??????????# +???????????????###### = | | ??????????# #??????????????????# % | | ??????????# #??????????????????## * # # | | ??????????# A#???????????????????# % # # # | | ??????????# ##################### # #### | | ??????????# A s u # ##??? | | ??????????# g###################### | | ??????????+ #????????????????????# | | ??????????# #????????????????????##### ## | | ??????????# #????????????????????????#### !! | | ??????????# #???????????????????????????# !! | | ??????????# #?????###???????????????????# | | ??????????# ####### ##########??????????# | | ??????????# """T""" "??????????# ] | | ??????????# """ """ "????BB????# | | ??????????# "????BB?????##+##### | | ??????????# "??????????????????? | | ??????????# "" "??????????????????? | | ??????????# @" "??????????????????? | | ??????????# "??????????????????? | | ??????????# "????BB????????????? | | ??????????# "????BB????????????? | | ??????????# "??????????????????? | | ??????????# ####### ##########??????????????????? | | ??????????# #?????###???????????????????????????? | | ??????????# #???????????????????????????????????? | | ??????????# ????????????????????????????????????? | | ??????????# ????????????????????????????????????? | | ??????????# ????????????????????????????????????? | | ??????????# ????????????????????????????????????? | | ??????????# ????????????????????????????????????? | | ??????????# ????????????????????????????????????? | | ?????????? ????????????????????????????????????? | | ?????????? ????????????????????????????????????? | | ?????????? ????????????????????????????????????? | | ?????????? ????????????????????????????????????? | | ??????????? ?????????????????????????????????????? | | ?????????????????????????????????????????????????? | | ?????????????????????????????????????????????????? | | ?????????????????????????????????????????????????? | | ?????????????????????????????????????????????????? | | ?????????????????????????????????????????????????? | | ?????????????????????????????????????????????????? | +----------------------------------------------------+ Best States ------------- Heat Dissipation 71 Energy Generation 56 Energy Capacity 320 Matter Stores 300 Matter Capacity 300 Sight Range 22 Robot Scan Range 16 Terrain Scan Density 210 Additional Mass Support 6 Armor Coverage 450 Resistance: TH 30 Evasion (%) 79 Melee Accuracy 12 Recoil Reduction 4 Offensive Hacking 22 Defensive Hacking 20 Authchip Count 2 Item Schematics ----------------- Flight Unit | -10/Materials | Hacked Signal Interpreter | -10/Materials | Hacked Seismic Detector | -10/Materials | Hacked Imp. Flight Unit | -9/Materials | Scanalyzed Combat Drone Bay | -7/Data Miner | Free Lgt. Regenerative Plating | -7/Data Miner | Free Cld. Aerolev Unit | -7/Data Miner | Free Exp. Weapon Shielding | -7/Data Miner | Free Force Rifle | -7/Data Miner | Free Med. Armored Exoskeleton | -7/Data Miner | Free Imp. Shock Absorption System | -7/Data Miner | Free Disruptor Cannon | -7/Data Miner | Free Angular Momentum Engine | -7/Data Miner | Free Adv. Salvage Targeting Computer | -7/Data Miner | Free Hvy. Gauss Cannon | -7/Data Miner | Free Adv. Particle Charger | -7/Data Miner | Free Robot Schematics ------------------ E-15 Imp | -7/Data Miner | Free B-48 Gladiator | -7/Data Miner | Free G-50 Soldier | -7/Data Miner | Free L-41 Fighter | -7/Data Miner | Free A-15 Conveyor | -7/Data Miner | Free S-27 Virus | -7/Data Miner | Free Fabricated ------------ Imp. Flight Unit | x1 | -7/Factory | Authchip Imp. Flight Unit | x1 | -4/Factory | Authchip Repaired ---------- Mni. Grenade Launcher | 36% | -9/Materials Imp. Light Armor Plating | 34% | -6/Factory Lgt. Nuclear Core | 8% | -3/Research Studied --------- Flight Unit | -8/Materials | Hacked VTOL Module | -8/Materials | Hacked Lgt. Deuterium Engine | -7/Factory | Hacked Hvy. Missile Launcher | -7/Factory | Hacked Xenon Bombardment Thruster | -7/Factory | Hacked Lgt. Ion Engine | -4/Factory | Hacked Lgt. Nuclear Core | -4/Factory | Hacked Impulse Thruster Array | -3/Research | Hacked Impulse Thruster | -3/Research | Hacked Lgt. Antimatter Reactor | -3/Research | Hacked Power Sword | -3/Research | Hacked Lgt. Particle Reactor | -1/Access | Hacked Alien Tech Used ----------------- None Achievements -------------- Better Safe Than Exploded Challenges ------------ None Game ------ Seed ActuatorFortressTerrabomb Manual? 0 Play Time 02:14:28 Cumulative 391.3 hours Start 2026.08.25 @ 10:48:57 End 2026.08.25 @ 13:00:42 Sessions 1 Manual Loads 0 Difficulty Rogue Special Mode None Game No. 235 Rogue 231 Adventurer 4 Explorer 0 Win Type 0 Total 117 Types 88/0/15/3/2/1/2/0/0/6 Lore% 91 Gallery% 75 Achievement% 73 Wizard Run 0 Options --------- Layout 2 ASCII 0 Keyboard 1 Movement Vi Keybinds 1 Fullscreen 2 Font 24/Smallcaps Map View 50x44 Zoom Use 0% Tactical HUD 1 Map Filters NONE Filters NONE Steam 1 RUN: 9061733f-7135-4fdf-9b3b-dae67994fb55